[Event "Live Chess"]
[Site "Chess.com"]
[Date "2023.05.21"]
[Round "-"]
[White "DoYouLikeCurry"]
[Black "mattihelenius2"]
[Result "1-0"]
[WhiteElo "1447"]
[BlackElo "491"]
[TimeControl "300"]
[EndTime "6:17:55 PDT"]
[Termination "DoYouLikeCurry won by resignation"]

1. e4 {[%clk 0:04:57.4]} 1... Nc6 {[%clk 0:04:57.4]} 2. Nc3 {[%clk 0:04:56]}
2... e5 {[%clk 0:04:51.6]} 3. Bc4 {[%clk 0:04:54.9]} 3... Nf6 {[%clk 0:04:49]}
4. d3 {[%clk 0:04:53.7]} 4... d6 {[%clk 0:04:46.7]} 5. f4 {[%clk 0:04:52.3]}
5... Bg4 {[%clk 0:04:44.6]} 6. Nf3 {[%clk 0:04:50]} 6... Bh5 {[%clk 0:04:42.1]}
7. O-O {[%clk 0:04:48.3]} 7... Nd4 {[%clk 0:04:38.1]} 8. fxe5 {[%clk 0:04:41.9]}
8... Ng4 {[%clk 0:04:27.6]} 9. Nxd4 {[%clk 0:04:34]} 9... g6 {[%clk 0:04:19.6]}
10. Qf3 {[%clk 0:04:23.1]} 10... Nxe5 {[%clk 0:04:12.9]} 11. Qf4 {[%clk
0:04:14.9]} 11... Qe7 {[%clk 0:03:15.9]} 12. Nd5 {[%clk 0:04:07.7]} 12... g5
{[%clk 0:02:23.4]} 13. Nxc7+ {[%clk 0:03:59.6]} 13... Qxc7 {[%clk 0:02:14.9]}
14. Bxf7+ {[%clk 0:03:57.6]} 14... Ke7 {[%clk 0:02:06.9]} 15. Qxg5+ {[%clk
0:03:53.5]} 1-0

[Event "Live Chess"]
[Site "Chess.com"]
[Date "2023.05.21"]
[Round "-"]
[White "Ian-Morley"]
[Black "nigelst"]
[Result "0-1"]
[WhiteElo "1058"]
[BlackElo "1696"]
[TimeControl "300"]
[EndTime "6:17:59 PDT"]
[Termination "nigelst won by resignation"]

1. e4 {[%clk 0:04:57.4]} 1... c6 {[%clk 0:04:58.8]} 2. d4 {[%clk 0:04:56.2]}
2... d5 {[%clk 0:04:56.7]} 3. f3 {[%clk 0:04:55.4]} 3... e6 {[%clk 0:04:54.6]}
4. exd5 {[%clk 0:04:50.2]} 4... exd5 {[%clk 0:04:52.9]} 5. Qe2+ {[%clk
0:04:49.1]} 5... Be6 {[%clk 0:04:50.2]} 6. Nc3 {[%clk 0:04:45]} 6... Be7 {[%clk
0:04:47.8]} 7. Nh3 {[%clk 0:04:41.2]} 7... Nf6 {[%clk 0:04:42.2]} 8. Nf4 {[%clk
0:04:39.5]} 8... Bd7 {[%clk 0:04:37.9]} 9. Bd2 {[%clk 0:04:28.9]} 9... O-O
{[%clk 0:04:36.1]} 10. O-O-O {[%clk 0:04:26.3]} 10... Re8 {[%clk 0:04:35.2]} 11.
h4 {[%clk 0:04:20.2]} 11... Qb6 {[%clk 0:04:28.8]} 12. b3 {[%clk 0:04:12.7]}
12... Ba3+ {[%clk 0:04:24.5]} 13. Kb1 {[%clk 0:04:09.7]} 13... Rxe2 {[%clk
0:04:23]} 14. Bxe2 {[%clk 0:04:07.8]} 14... Na6 {[%clk 0:04:18.6]} 15. h5 {[%clk
0:04:06.4]} 15... h6 {[%clk 0:04:14.5]} 16. g4 {[%clk 0:04:05.2]} 16... Nh7
{[%clk 0:04:10.7]} 17. Bd3 {[%clk 0:04:02.1]} 17... Ng5 {[%clk 0:04:06.8]} 18.
Nh3 {[%clk 0:03:55.1]} 18... Nxf3 {[%clk 0:04:02.3]} 19. g5 {[%clk 0:03:52.6]}
19... Nxd2+ {[%clk 0:04:00.4]} 20. Rxd2 {[%clk 0:03:51.5]} 20... Bb4 {[%clk
0:03:58.7]} 21. Rg2 {[%clk 0:03:49.8]} 21... Bxh3 {[%clk 0:03:44]} 22. Rxh3
{[%clk 0:03:48.2]} 22... hxg5 {[%clk 0:03:41.7]} 23. Rhg3 {[%clk 0:03:46.8]}
23... f6 {[%clk 0:03:37.9]} 24. h6 {[%clk 0:03:43.7]} 24... gxh6 {[%clk
0:03:32.1]} 25. Ne2 {[%clk 0:03:41]} 25... Be1 {[%clk 0:03:22.4]} 26. Rg4 {[%clk
0:03:36]} 26... h5 {[%clk 0:03:21.2]} 27. Rxg5+ {[%clk 0:03:30.9]} 27... fxg5
{[%clk 0:03:19.2]} 28. Rxg5+ {[%clk 0:03:29.9]} 28... Kf7 {[%clk 0:03:13.2]} 29.
Bg6+ {[%clk 0:03:27]} 29... Kf6 {[%clk 0:03:11.3]} 30. Rxh5 {[%clk 0:03:16.4]}
30... Kxg6 {[%clk 0:03:07.3]} 31. Nf4+ {[%clk 0:03:15.2]} 31... Kf6 {[%clk
0:03:02.8]} 32. Rh6+ {[%clk 0:03:14]} 32... Kf5 {[%clk 0:03:01.2]} 33. Nxd5
{[%clk 0:03:12.8]} 33... cxd5 {[%clk 0:02:52]} 34. Rxb6 {[%clk 0:03:08.1]} 34...
axb6 {[%clk 0:02:50.7]} 35. Kb2 {[%clk 0:03:05.2]} 0-1

[Event "Live Chess"]
[Site "Chess.com"]
[Date "2023.05.21"]
[Round "-"]
[White "matt1979"]
[Black "Brooms1989"]
[Result "1/2-1/2"]
[WhiteElo "1526"]
[BlackElo "1158"]
[TimeControl "300"]
[EndTime "6:18:14 PDT"]
[Termination "Game drawn by repetition"]

1. f4 {[%clk 0:04:58.2]} 1... Nc6 {[%clk 0:04:53.7]} 2. Nf3 {[%clk 0:04:53.3]}
2... Nf6 {[%clk 0:04:51.7]} 3. e3 {[%clk 0:04:46.6]} 3... g6 {[%clk 0:04:47.7]}
4. Bb5 {[%clk 0:04:44.2]} 4... Bg7 {[%clk 0:04:45.9]} 5. O-O {[%clk 0:04:37.2]}
5... a6 {[%clk 0:04:44]} 6. Bxc6 {[%clk 0:04:36.1]} 6... dxc6 {[%clk 0:04:43]}
7. d3 {[%clk 0:04:33.1]} 7... Bg4 {[%clk 0:04:41.5]} 8. Qe1 {[%clk 0:04:31.1]}
8... h5 {[%clk 0:04:37.4]} 9. h3 {[%clk 0:04:25]} 9... Bxf3 {[%clk 0:04:36]} 10.
Rxf3 {[%clk 0:04:23.2]} 10... Qd7 {[%clk 0:04:25.9]} 11. Nc3 {[%clk 0:04:18]}
11... O-O-O {[%clk 0:04:23.4]} 12. e4 {[%clk 0:04:09.3]} 12... Ne8 {[%clk
0:04:18.4]} 13. Be3 {[%clk 0:03:48.5]} 13... Bxc3 {[%clk 0:04:12.8]} 14. Qxc3
{[%clk 0:03:45.1]} 14... f6 {[%clk 0:04:11.6]} 15. Qc5 {[%clk 0:03:37.1]} 15...
b6 {[%clk 0:04:06.1]} 16. Qa3 {[%clk 0:03:33.6]} 16... a5 {[%clk 0:04:03.2]} 17.
b4 {[%clk 0:03:30.5]} 17... Qd6 {[%clk 0:03:59.8]} 18. Qb3 {[%clk 0:03:23.4]}
18... Qxb4 {[%clk 0:03:56.9]} 19. Qxb4 {[%clk 0:03:18.8]} 19... axb4 {[%clk
0:03:56.8]} 20. a3 {[%clk 0:03:15.8]} 20... bxa3 {[%clk 0:03:50.4]} 21. Rxa3
{[%clk 0:03:14.1]} 21... Nd6 {[%clk 0:03:45.3]} 22. Rf1 {[%clk 0:03:05.1]} 22...
Kd7 {[%clk 0:03:39.7]} 23. Bd2 {[%clk 0:02:48.7]} 23... Nb5 {[%clk 0:03:35.3]}
24. Rb3 {[%clk 0:02:45]} 24... Nd4 {[%clk 0:03:32.2]} 25. Rb2 {[%clk 0:02:41.2]}
25... Ra8 {[%clk 0:03:24.8]} 26. c3 {[%clk 0:02:31.1]} 26... Nb5 {[%clk
0:03:17.3]} 27. d4 {[%clk 0:02:20.7]} 27... Ra6 {[%clk 0:03:12.6]} 28. e5 {[%clk
0:02:17.3]} 28... Rf8 {[%clk 0:03:03.5]} 29. Rbb1 {[%clk 0:01:59.5]} 29... fxe5
{[%clk 0:02:55]} 30. dxe5 {[%clk 0:01:57.4]} 30... Ra3 {[%clk 0:02:50.3]} 31. c4
{[%clk 0:01:47.2]} 31... Nd4 {[%clk 0:02:34.3]} 32. Rbe1 {[%clk 0:01:30.6]}
32... Ra2 {[%clk 0:02:26.6]} 33. Bc3 {[%clk 0:01:26.7]} 33... Ne6 {[%clk
0:02:21.8]} 34. Rd1+ {[%clk 0:01:22.9]} 34... Ke8 {[%clk 0:02:15.9]} 35. g3
{[%clk 0:01:19.7]} 35... Ra3 {[%clk 0:02:10.1]} 36. Bb4 {[%clk 0:01:16.7]} 36...
Rxg3+ {[%clk 0:02:06.2]} 37. Kh2 {[%clk 0:01:15]} 37... Rb3 {[%clk 0:01:55]} 38.
Bd2 {[%clk 0:01:09.3]} 38... Rb2 {[%clk 0:01:49.1]} 39. Kg3 {[%clk 0:01:04]}
39... Rb3+ {[%clk 0:01:42.3]} 40. Kg2 {[%clk 0:01:01.7]} 40... Rb2 {[%clk
0:01:41.1]} 41. Kg3 {[%clk 0:01:00]} 41... Rb3+ {[%clk 0:01:40.1]} 42. Kg2
{[%clk 0:00:58.8]} 42... Rb2 {[%clk 0:01:33.3]} 43. Kg3 {[%clk 0:00:56.8]}
1/2-1/2

[Event "Live Chess"]
[Site "Chess.com"]
[Date "2023.05.21"]
[Round "-"]
[White "OleksiyJr1"]
[Black "RichardABates"]
[Result "0-1"]
[WhiteElo "1008"]
[BlackElo "2124"]
[TimeControl "300"]
[EndTime "6:18:17 PDT"]
[Termination "RichardABates won by resignation"]

1. e4 {[%clk 0:04:55.2]} 1... c5 {[%clk 0:04:58.7]} 2. Nf3 {[%clk 0:04:52.5]}
2... d6 {[%clk 0:04:57.6]} 3. Nc3 {[%clk 0:04:51.5]} 3... Nf6 {[%clk 0:04:55.9]}
4. d4 {[%clk 0:04:50]} 4... cxd4 {[%clk 0:04:54.3]} 5. Qxd4 {[%clk 0:04:49.9]}
5... e5 {[%clk 0:04:51.6]} 6. Qe3 {[%clk 0:04:47.1]} 6... Be7 {[%clk 0:04:48.6]}
7. Bd2 {[%clk 0:04:46.1]} 7... O-O {[%clk 0:04:46.7]} 8. O-O-O {[%clk
0:04:45.1]} 8... Nc6 {[%clk 0:04:43.1]} 9. Kb1 {[%clk 0:04:43.8]} 9... h6 {[%clk
0:04:38.5]} 10. h3 {[%clk 0:04:42.5]} 10... Be6 {[%clk 0:04:36.9]} 11. g4 {[%clk
0:04:39.7]} 11... Nd7 {[%clk 0:04:26.3]} 12. Ne1 {[%clk 0:04:38.7]} 12... Bg5
{[%clk 0:04:18.4]} 13. Qg3 {[%clk 0:04:18.1]} 13... Nd4 {[%clk 0:04:11.9]} 14.
Bxg5 {[%clk 0:04:00.9]} 14... Qxg5 {[%clk 0:04:05.1]} 15. Ne2 {[%clk 0:03:42.9]}
15... Rfc8 {[%clk 0:03:45.9]} 16. Nxd4 {[%clk 0:03:35.6]} 16... exd4 {[%clk
0:03:44.7]} 17. Qxd6 {[%clk 0:03:18.6]} 17... Qa5 {[%clk 0:03:39.9]} 18. Qa3
{[%clk 0:02:55.6]} 18... Qxa3 {[%clk 0:03:30.4]} 19. bxa3 {[%clk 0:02:55.5]}
19... Rc3 {[%clk 0:03:28.4]} 20. Bb5 {[%clk 0:02:47.4]} 20... Nb6 {[%clk
0:03:15.3]} 21. Rxd4 {[%clk 0:02:23]} 21... Rxa3 {[%clk 0:03:11.8]} 22. Nd3
{[%clk 0:01:34.7]} 22... a6 {[%clk 0:03:06.9]} 23. Nc5 {[%clk 0:01:18.8]} 23...
axb5 {[%clk 0:03:01]} 24. Nxe6 {[%clk 0:01:18.3]} 24... fxe6 {[%clk 0:02:58.3]}
25. Rd6 {[%clk 0:01:17.3]} 25... Nc4 {[%clk 0:02:53.6]} 26. Rxe6 {[%clk
0:01:02.5]} 26... Rxa2 {[%clk 0:02:52]} 27. Re8+ {[%clk 0:00:47.8]} 0-1

[Event "Live Chess"]
[Site "Chess.com"]
[Date "2023.05.21"]
[Round "-"]
[White "Geomorph"]
[Black "LodeshChess"]
[Result "1-0"]
[WhiteElo "1282"]
[BlackElo "1168"]
[TimeControl "300"]
[EndTime "6:18:17 PDT"]
[Termination "Geomorph won by checkmate"]

1. e4 {[%clk 0:04:59.1]} 1... c6 {[%clk 0:04:58.6]} 2. d4 {[%clk 0:04:56.4]}
2... d5 {[%clk 0:04:57.9]} 3. Nc3 {[%clk 0:04:55.8]} 3... dxe4 {[%clk
0:04:56.9]} 4. Nxe4 {[%clk 0:04:55.7]} 4... Bf5 {[%clk 0:04:56.2]} 5. Ng3 {[%clk
0:04:54.4]} 5... Bg6 {[%clk 0:04:55.8]} 6. N1e2 {[%clk 0:04:43.1]} 6... Nd7
{[%clk 0:04:54]} 7. h4 {[%clk 0:04:39.3]} 7... h6 {[%clk 0:04:52.6]} 8. Nf4
{[%clk 0:04:38]} 8... Bh7 {[%clk 0:04:51.1]} 9. c3 {[%clk 0:04:37.4]} 9... e6
{[%clk 0:04:50.2]} 10. Bd3 {[%clk 0:04:36.3]} 10... Bxd3 {[%clk 0:04:48.4]} 11.
Qxd3 {[%clk 0:04:36.2]} 11... Ngf6 {[%clk 0:04:45.5]} 12. O-O {[%clk 0:04:32.2]}
12... Qc7 {[%clk 0:04:40.4]} 13. Re1 {[%clk 0:04:27.7]} 13... Be7 {[%clk
0:04:37.8]} 14. Qe2 {[%clk 0:04:10.2]} 14... O-O {[%clk 0:04:35]} 15. Nxe6
{[%clk 0:04:05.2]} 15... fxe6 {[%clk 0:04:16.8]} 16. Qxe6+ {[%clk 0:04:00.6]}
16... Kh8 {[%clk 0:04:16.3]} 17. Nf5 {[%clk 0:03:35.9]} 17... Ng4 {[%clk
0:03:58.1]} 18. Qxe7 {[%clk 0:03:20.6]} 18... Qh2+ {[%clk 0:03:51.4]} 19. Kf1
{[%clk 0:03:19.1]} 19... Rae8 {[%clk 0:03:14.3]} 20. Qxg7# {[%clk 0:03:13.5]}
1-0

[Event "Live Chess"]
[Site "Chess.com"]
[Date "2023.05.21"]
[Round "-"]
[White "MarkLim1"]
[Black "grillage"]
[Result "1-0"]
[WhiteElo "1708"]
[BlackElo "1789"]
[TimeControl "300"]
[EndTime "6:18:22 PDT"]
[Termination "MarkLim1 won by resignation"]

1. e4 {[%clk 0:04:59.3]} 1... d5 {[%clk 0:04:58.7]} 2. exd5 {[%clk 0:04:58.2]}
2... Qxd5 {[%clk 0:04:58.3]} 3. Nf3 {[%clk 0:04:57.1]} 3... Bg4 {[%clk
0:04:56.5]} 4. Be2 {[%clk 0:04:55.8]} 4... Nc6 {[%clk 0:04:51.7]} 5. O-O {[%clk
0:04:55.1]} 5... O-O-O {[%clk 0:04:49.1]} 6. Nc3 {[%clk 0:04:54]} 6... Qd7
{[%clk 0:04:47]} 7. d3 {[%clk 0:04:52]} 7... Nf6 {[%clk 0:04:45]} 8. Bf4 {[%clk
0:04:50.9]} 8... e6 {[%clk 0:04:31.1]} 9. Ne5 {[%clk 0:04:45.9]} 9... Nxe5
{[%clk 0:04:20.9]} 10. Bxe5 {[%clk 0:04:43.9]} 10... Bxe2 {[%clk 0:04:19.1]} 11.
Qxe2 {[%clk 0:04:42.6]} 11... Bd6 {[%clk 0:04:15.8]} 12. Bxd6 {[%clk 0:04:38.7]}
12... Qxd6 {[%clk 0:04:13.4]} 13. Rfe1 {[%clk 0:04:28.1]} 13... a6 {[%clk
0:04:07]} 14. Qe5 {[%clk 0:04:26.4]} 14... Qxe5 {[%clk 0:04:04.5]} 15. Rxe5
{[%clk 0:04:25.2]} 15... Rd6 {[%clk 0:03:55.9]} 16. h3 {[%clk 0:04:24]} 16...
Rhd8 {[%clk 0:03:54.4]} 17. Rae1 {[%clk 0:04:22.4]} 17... Nd5 {[%clk 0:03:50.3]}
18. Nxd5 {[%clk 0:04:21]} 18... Rxd5 {[%clk 0:03:49.6]} 19. Rxd5 {[%clk
0:04:18.2]} 19... Rxd5 {[%clk 0:03:49.1]} 20. Re4 {[%clk 0:04:15.1]} 20... Kd7
{[%clk 0:03:47.2]} 21. Kf1 {[%clk 0:04:13.5]} 21... Kd6 {[%clk 0:03:41.2]} 22.
Ke2 {[%clk 0:04:12.1]} 22... f6 {[%clk 0:03:37.9]} 23. a4 {[%clk 0:04:08.7]}
23... e5 {[%clk 0:03:36.5]} 24. b4 {[%clk 0:04:03.9]} 24... b5 {[%clk
0:03:21.1]} 25. a5 {[%clk 0:04:00.8]} 25... f5 {[%clk 0:03:08.9]} 26. Rh4 {[%clk
0:03:59.3]} 26... h6 {[%clk 0:03:06.5]} 27. Ke3 {[%clk 0:03:54.8]} 27... Ke6
{[%clk 0:03:05.1]} 28. c4 {[%clk 0:03:47.1]} 28... bxc4 {[%clk 0:02:56.9]} 29.
Rxc4 {[%clk 0:03:44]} 29... Kd6 {[%clk 0:02:48.8]} 30. f3 {[%clk 0:03:32.2]}
30... g5 {[%clk 0:02:46.9]} 31. g4 {[%clk 0:03:29.2]} 31... f4+ {[%clk
0:02:43.6]} 32. Ke4 {[%clk 0:03:27.7]} 32... Rb5 {[%clk 0:02:39.1]} 33. d4
{[%clk 0:03:13.4]} 33... exd4 {[%clk 0:02:27.4]} 34. Rxd4+ {[%clk 0:03:09.7]}
34... Ke6 {[%clk 0:02:26.7]} 35. Rc4 {[%clk 0:03:07.8]} 35... Re5+ {[%clk
0:02:18.6]} 36. Kd4 {[%clk 0:03:06.7]} 36... Rd5+ {[%clk 0:02:17.7]} 37. Ke4
{[%clk 0:03:05]} 37... Re5+ {[%clk 0:02:11.7]} 38. Kd4 {[%clk 0:03:00]} 38...
Re3 {[%clk 0:02:05.1]} 39. Rxc7 {[%clk 0:02:56.9]} 39... Rxf3 {[%clk 0:02:03.8]}
40. Rc6+ {[%clk 0:02:55.8]} 40... Kf7 {[%clk 0:01:59.3]} 41. Rxh6 {[%clk
0:02:54.5]} 41... Rxh3 {[%clk 0:01:57.3]} 42. Rxh3 {[%clk 0:02:53.1]} 1-0

[Event "Live Chess"]
[Site "Chess.com"]
[Date "2023.05.21"]
[Round "-"]
[White "JoeRoot66"]
[Black "friarnator"]
[Result "0-1"]
[WhiteElo "1902"]
[BlackElo "2026"]
[TimeControl "300"]
[EndTime "6:18:28 PDT"]
[Termination "friarnator won by resignation"]

1. e4 {[%clk 0:04:59.1]} 1... Nf6 {[%clk 0:04:49.2]} 2. e5 {[%clk 0:04:54.5]}
2... Nd5 {[%clk 0:04:48.8]} 3. d4 {[%clk 0:04:54]} 3... d6 {[%clk 0:04:48.2]} 4.
c4 {[%clk 0:04:53.6]} 4... Nb6 {[%clk 0:04:47.3]} 5. exd6 {[%clk 0:04:53.3]}
5... cxd6 {[%clk 0:04:47.2]} 6. Nc3 {[%clk 0:04:52.4]} 6... g6 {[%clk
0:04:46.6]} 7. b3 {[%clk 0:04:51.6]} 7... Bg7 {[%clk 0:04:46.2]} 8. Be3 {[%clk
0:04:51.2]} 8... O-O {[%clk 0:04:45.9]} 9. Rc1 {[%clk 0:04:50.2]} 9... e5 {[%clk
0:04:45]} 10. d5 {[%clk 0:04:46]} 10... f5 {[%clk 0:04:44.1]} 11. f4 {[%clk
0:04:37.4]} 11... exf4 {[%clk 0:04:37]} 12. Bxf4 {[%clk 0:04:35.1]} 12... g5
{[%clk 0:04:28.2]} 13. Bd2 {[%clk 0:04:18.8]} 13... f4 {[%clk 0:04:21.9]} 14. h3
{[%clk 0:04:09]} 14... Re8+ {[%clk 0:04:16.6]} 15. Be2 {[%clk 0:04:02.7]} 15...
Bf5 {[%clk 0:04:14.8]} 16. Nf3 {[%clk 0:04:00]} 16... Bd3 {[%clk 0:04:13.4]} 17.
O-O {[%clk 0:03:56.3]} 17... Bxe2 {[%clk 0:03:56.6]} 18. Nxe2 {[%clk 0:03:53.8]}
18... N8d7 {[%clk 0:03:55.2]} 19. Qc2 {[%clk 0:03:49.8]} 19... Ne5 {[%clk
0:03:46.8]} 20. Ned4 {[%clk 0:03:42.6]} 20... Nxf3+ {[%clk 0:03:39.5]} 21. Nxf3
{[%clk 0:03:39.4]} 21... Nd7 {[%clk 0:03:36.9]} 22. Qf5 {[%clk 0:03:34.9]} 22...
h6 {[%clk 0:03:22.1]} 23. Rfe1 {[%clk 0:03:12.6]} 23... Qb6+ {[%clk 0:03:01.1]}
24. Kh1 {[%clk 0:03:07.3]} 24... Ne5 {[%clk 0:03:00.4]} 25. Nxe5 {[%clk
0:02:38.6]} 25... dxe5 {[%clk 0:02:50.5]} 26. Bc3 {[%clk 0:02:32.2]} 26... Qf6
{[%clk 0:02:42.1]} 27. Qxf6 {[%clk 0:02:25.7]} 27... Bxf6 {[%clk 0:02:42]} 28.
Re4 {[%clk 0:02:24.9]} 28... Kf7 {[%clk 0:02:39.4]} 29. Rce1 {[%clk 0:02:22.1]}
29... Re7 {[%clk 0:02:38.7]} 30. d6 {[%clk 0:02:08.4]} 30... Re6 {[%clk
0:02:19.5]} 31. c5 {[%clk 0:01:49]} 31... b6 {[%clk 0:02:10.1]} 32. b4 {[%clk
0:01:40.4]} 32... bxc5 {[%clk 0:02:09.4]} 33. bxc5 {[%clk 0:01:40.3]} 33... Rc8
{[%clk 0:02:08.9]} 34. Bb4 {[%clk 0:01:31.8]} 34... a5 {[%clk 0:02:05.9]} 35.
Ba3 {[%clk 0:01:21.2]} 35... Rc6 {[%clk 0:02:00.5]} 36. Rc1 {[%clk 0:00:57.9]}
36... Re8 {[%clk 0:01:48.1]} 37. d7 {[%clk 0:00:45.9]} 37... Rd8 {[%clk
0:01:44.7]} 38. Rd1 {[%clk 0:00:43]} 38... Ke6 {[%clk 0:01:41.3]} 39. Ra4 {[%clk
0:00:16.9]} 39... Rxd7 {[%clk 0:01:32.6]} 40. Rxd7 {[%clk 0:00:16.8]} 40... Kxd7
{[%clk 0:01:32]} 41. Rxa5 {[%clk 0:00:16.4]} 41... e4 {[%clk 0:01:30]} 42. Ra7+
{[%clk 0:00:15.1]} 42... Ke6 {[%clk 0:01:28.4]} 43. Ra4 {[%clk 0:00:13.3]} 43...
Kd5 {[%clk 0:01:25.3]} 44. Ra7 {[%clk 0:00:09.4]} 44... e3 {[%clk 0:01:21.3]}
45. Rd7+ {[%clk 0:00:08.5]} 45... Kc4 {[%clk 0:01:19.5]} 46. Rd6 {[%clk
0:00:07.7]} 46... Rxd6 {[%clk 0:01:16.3]} 47. cxd6 {[%clk 0:00:07.6]} 47... e2
{[%clk 0:01:14.2]} 48. d7 {[%clk 0:00:06.7]} 48... e1=Q+ {[%clk 0:01:13.2]} 0-1

[Event "Live Chess"]
[Site "Chess.com"]
[Date "2023.05.21"]
[Round "-"]
[White "LiamBellwood"]
[Black "SavagePawn7"]
[Result "1-0"]
[WhiteElo "1914"]
[BlackElo "789"]
[TimeControl "300"]
[EndTime "6:18:29 PDT"]
[Termination "LiamBellwood won by checkmate"]

1. d4 {[%clk 0:04:59.4]} 1... e5 {[%clk 0:04:55.7]} 2. Nc3 {[%clk 0:04:58.3]}
2... exd4 {[%clk 0:04:54.3]} 3. Qxd4 {[%clk 0:04:58.2]} 3... Nc6 {[%clk
0:04:51.8]} 4. Qd1 {[%clk 0:04:57.7]} 4... Nf6 {[%clk 0:04:50.1]} 5. Nf3 {[%clk
0:04:57.6]} 5... Bb4 {[%clk 0:04:46.2]} 6. Bg5 {[%clk 0:04:55]} 6... d6 {[%clk
0:04:44]} 7. Qd3 {[%clk 0:04:53.4]} 7... O-O {[%clk 0:04:34.8]} 8. e3 {[%clk
0:04:49.5]} 8... Bg4 {[%clk 0:04:25.7]} 9. Be2 {[%clk 0:04:39.8]} 9... Bxf3
{[%clk 0:04:24]} 10. Bxf3 {[%clk 0:04:39.7]} 10... Ne5 {[%clk 0:04:20.9]} 11.
Qd2 {[%clk 0:04:38.6]} 11... Nxf3+ {[%clk 0:04:17.3]} 12. gxf3 {[%clk
0:04:38.5]} 12... Bxc3 {[%clk 0:04:08.5]} 13. Qxc3 {[%clk 0:04:36.9]} 13... h6
{[%clk 0:04:02.3]} 14. Bh4 {[%clk 0:04:29.9]} 14... g5 {[%clk 0:03:57.9]} 15.
Rg1 {[%clk 0:04:28.9]} 15... Nd5 {[%clk 0:03:43.7]} 16. Qd4 {[%clk 0:04:24.8]}
16... c6 {[%clk 0:03:41.1]} 17. f4 {[%clk 0:04:24]} 17... f6 {[%clk 0:03:34.6]}
18. fxg5 {[%clk 0:04:21.5]} 18... fxg5 {[%clk 0:03:32.5]} 19. f4 {[%clk
0:04:17.8]} 19... Nxe3 {[%clk 0:03:21.2]} 20. Qc3 {[%clk 0:03:55.5]} 20... Re8
{[%clk 0:03:16.8]} 21. Kd2 {[%clk 0:03:46.9]} 21... Nd5 {[%clk 0:03:06.8]} 22.
Qf3 {[%clk 0:03:35.7]} 22... Kh7 {[%clk 0:02:44.7]} 23. fxg5 {[%clk 0:03:32.4]}
23... hxg5 {[%clk 0:02:39.6]} 24. Rxg5 {[%clk 0:03:24.8]} 24... Rg8 {[%clk
0:02:33.2]} 25. Qh5# {[%clk 0:03:23.7]} 1-0

[Event "Live Chess"]
[Site "Chess.com"]
[Date "2023.05.21"]
[Round "-"]
[White "RedRook90"]
[Black "Alfiedog12"]
[Result "1-0"]
[WhiteElo "1949"]
[BlackElo "918"]
[TimeControl "300"]
[EndTime "6:18:36 PDT"]
[Termination "RedRook90 won by resignation"]

1. c4 {[%clk 0:04:58]} 1... d5 {[%clk 0:04:54.7]} 2. cxd5 {[%clk 0:04:57]} 2...
Qxd5 {[%clk 0:04:53.7]} 3. Nc3 {[%clk 0:04:56.9]} 3... Qd8 {[%clk 0:04:48.9]} 4.
d4 {[%clk 0:04:56.5]} 4... Nf6 {[%clk 0:04:47.8]} 5. Nf3 {[%clk 0:04:55.7]} 5...
Bf5 {[%clk 0:04:42.3]} 6. Bf4 {[%clk 0:04:54.1]} 6... Nbd7 {[%clk 0:04:38.6]} 7.
e3 {[%clk 0:04:53.5]} 7... e6 {[%clk 0:04:38.1]} 8. Bd3 {[%clk 0:04:52.6]} 8...
Bxd3 {[%clk 0:04:34.4]} 9. Qxd3 {[%clk 0:04:52.5]} 9... Bb4 {[%clk 0:04:32.6]}
10. O-O {[%clk 0:04:51.5]} 10... O-O {[%clk 0:04:31]} 11. Rac1 {[%clk
0:04:42.1]} 11... Nc5 {[%clk 0:04:22.5]} 12. Qc2 {[%clk 0:04:35.6]} 12... Bxc3
{[%clk 0:04:12.2]} 13. Qxc3 {[%clk 0:04:34]} 13... Nce4 {[%clk 0:04:10.7]} 14.
Qxc7 {[%clk 0:04:31.8]} 14... Nd2 {[%clk 0:03:56.8]} 15. Nxd2 {[%clk 0:04:26.6]}
1-0

[Event "Live Chess"]
[Site "Chess.com"]
[Date "2023.05.21"]
[Round "-"]
[White "HoarseyHorsey"]
[Black "gmnorfolk"]
[Result "0-1"]
[WhiteElo "1466"]
[BlackElo "2130"]
[TimeControl "300"]
[EndTime "6:18:41 PDT"]
[Termination "gmnorfolk won by resignation"]

1. d4 {[%clk 0:04:58.7]} 1... Nf6 {[%clk 0:04:58.2]} 2. c4 {[%clk 0:04:58]} 2...
g6 {[%clk 0:04:57.3]} 3. f3 {[%clk 0:04:56.3]} 3... Bg7 {[%clk 0:04:54.3]} 4. e4
{[%clk 0:04:55.6]} 4... d6 {[%clk 0:04:52.8]} 5. Nc3 {[%clk 0:04:54.9]} 5... O-O
{[%clk 0:04:52.2]} 6. Nge2 {[%clk 0:04:53.7]} 6... Nc6 {[%clk 0:04:50.7]} 7. Be3
{[%clk 0:04:52.9]} 7... a6 {[%clk 0:04:49.4]} 8. Qd2 {[%clk 0:04:50.4]} 8... Na5
{[%clk 0:04:48.8]} 9. Ng3 {[%clk 0:04:42.3]} 9... e5 {[%clk 0:04:37.9]} 10. d5
{[%clk 0:04:39.6]} 10... b5 {[%clk 0:04:34]} 11. cxb5 {[%clk 0:04:37.8]} 11...
axb5 {[%clk 0:04:33.9]} 12. Bxb5 {[%clk 0:04:34.6]} 12... Ba6 {[%clk 0:04:32.7]}
13. Bxa6 {[%clk 0:04:31.2]} 13... Rxa6 {[%clk 0:04:31.2]} 14. O-O {[%clk
0:04:30.1]} 14... Nc4 {[%clk 0:04:29.1]} 15. Qe2 {[%clk 0:04:27.9]} 15... Qa8
{[%clk 0:04:26.7]} 16. Bc1 {[%clk 0:04:24.9]} 16... Rb8 {[%clk 0:04:24.5]} 17.
b3 {[%clk 0:04:19.6]} 17... Na5 {[%clk 0:04:18.9]} 18. Be3 {[%clk 0:04:04.2]}
18... Nxb3 {[%clk 0:04:16.3]} 19. Rab1 {[%clk 0:03:55.9]} 19... Nd4 {[%clk
0:04:15.1]} 20. Bxd4 {[%clk 0:03:54.1]} 20... exd4 {[%clk 0:04:13]} 21. Nd1
{[%clk 0:03:50.9]} 21... Rxb1 {[%clk 0:04:10.1]} 0-1